[Event "2nd Goa GM Open 2019"]
[Site "Goa"]
[Date "2019.06.18"]
[Round "1.19"]
[White "Soham Datar"]
[Black "Iniyan, P."]
[Result "0-1"]
[ECO "A05"]
[WhiteElo "2102"]
[BlackElo "2525"]
[Annotator "ChessBase"]
[PlyCount "72"]
[EventDate "2019.06.17"]
[EventType "swiss"]
[EventCountry "IND"]
[SourceTitle "playchess.com"]
[Source "ChessBase"]
[SourceQuality "1"]
[TimeControl "5400+30"]

1. Nf3 {[%emt 0:00:00]} Nf6 {[%emt 0:00:17]} 2. b3 {[%emt 0:00:00]} d5 {[%emt 0:00:16]} 3. Bb2 {[%emt 0:00:00]} c5 {[%emt 0:00:09]} 4. e3 {[%emt 0:00:40]} e6 {[%emt 0:00:15]} 5. g3 {[%emt 0:02:13]} Nc6 {[%emt 0:01:17]} 6. Bg2 {[%emt 0:00:05]} Bd6 {[%emt 0:05:04]} 7. c4 {[%emt 0:05:08]} d4 {[%emt 0:07:22]} 8. exd4 {[%emt 0:04:06]} cxd4 {[%emt 0:00:37]} 9. O-O {[%emt 0:00:09]} O-O {[%emt 0:00:36]} 10. Na3 {[%emt 0:05:51]} e5 {[%emt 0:02:57]} 11. d3 {[%emt 0:00:07]} Nd7 {[%emt 0:00:49]} 12. Nc2 {[%emt 0:02:53]} a5 13. Nd2 {[%emt 0:08:46]} f5 {[%emt 0:11:37]} 14. Re1 {[%emt 0:03:48]} Nc5 {[%emt 0:01:27]} 15. Bd5+ {[%emt 0:18:44]} Kh8 {[%emt 0:02:12]} 16. Qe2 {[%emt 0:05:01]} e4 {[%emt 0:02:10]} 17. Nxd4 {[%emt 0:02:17]} Nxd3 {[%emt 0:00:32]} 18. Nxc6 {[%emt 0:07:24]} bxc6 {[%emt 0:00:07]} 19. Bxc6 {[%emt 0:00:08]} Ra6 {[%emt 0:00:06]} 20. Nxe4 {[%emt 0:14:32]} fxe4 {[%emt 0:03:39]} 21. Bxe4 {[%emt 0:00:06]} Nxb2 {[%emt 0:01:08]} 22. Qh5 {[%emt 0:04:00]} g6 {[%emt 0:00:12]} 23. Bxg6 {[%emt 0:00:21]} Ra7 {[%emt 0:00:07]} 24. Re8 {[%emt 0:06:41]} Qf6 {[%emt 0:01:43]} 25. Rxf8+ {[%emt 0:01:22]} Bxf8 {[%emt 0:00:08]} 26. Bc2 {[%emt 0:00:47]} Rf7 {[%emt 0:00:10]} 27. Rf1 {[%emt 0:00:32]} Bb7 {[%emt 0:00:16]} 28. a3 {[%emt 0:04:08]} Qc6 {[%emt 0:01:17]} 29. f3 {[%emt 0:00:40]} Qc5+ {[%emt 0:00:06]} 30. Qxc5 {[%emt 0:00:05]} Bxc5+ {[%emt 0:00:07]} 31. Kg2 {[%emt 0:00:03]} Bxa3 {[%emt 0:00:22]} 32. h4 {[%emt 0:00:16]} Bc5 {[%emt 0:00:43]} 33. g4 {[%emt 0:00:11]} a4 {[%emt 0:00:07]} 34. bxa4 {[%emt 0:00:22]} Nxc4 {[%emt 0:00:08]} 35. Bb3 {[%emt 0:01:44]} Ne3+ {[%emt 0:00:07]} 36. Kh3 {[%emt 0:00:05]} Rf8 {[%emt 0:01:28]} 0-1

[Event "2nd Goa GM Open 2019"]
[Site "Goa"]
[Date "2019.06.18"]
[Round "1.20"]
[White "Malakhatko, Vadim"]
[Black "Mahindrakar Indrajeet"]
[Result "1-0"]
[ECO "E91"]
[WhiteElo "2505"]
[BlackElo "2100"]
[Annotator "ChessBase"]
[PlyCount "85"]
[EventDate "2019.06.17"]
[EventType "swiss"]
[EventCountry "IND"]
[SourceTitle "playchess.com"]
[Source "ChessBase"]
[SourceQuality "1"]
[TimeControl "5400+30"]

1. Nf3 {[%emt 0:00:00]} Nf6 {[%emt 0:03:58]} 2. c4 {[%emt 0:00:00]} g6 {[%emt 0:01:56]} 3. Nc3 {[%emt 0:00:01]} Bg7 {[%emt 0:00:28]} 4. d4 {[%emt 0:00:10]} d6 {[%emt 0:01:11]} 5. e4 {[%emt 0:00:07]} O-O {[%emt 0:00:45]} 6. Be2 {[%emt 0:00:08]} Na6 {[%emt 0:01:51]} 7. O-O {[%emt 0:00:11]} e5 {[%emt 0:01:25]} 8. Be3 {[%emt 0:00:11]} Ng4 {[%emt 0:02:01]} 9. Bg5 {[%emt 0:00:08]} Qe8 {[%emt 0:01:43]} 10. h3 {[%emt 0:00:18]} f6 {[%emt 0:05:04]} 11. Bc1 {[%emt 0:13:39]} Nh6 {[%emt 0:00:29]} 12. Re1 {[%emt 0:00:09]} Nf7 {[%emt 0:03:52]} 13. b3 Kh8 {[%emt 0:08:49]} 14. Bb2 {[%emt 0:12:37]} c6 {[%emt 0:05:47]} 15. Bf1 {[%emt 0:07:12]} Nc7 {[%emt 0:05:29]} 16. b4 {[%emt 0:00:28]} Rg8 {[%emt 0:07:35]} 17. a3 {[%emt 0:01:57]} Ne6 {[%emt 0:06:23]} 18. d5 {[%emt 0:00:12]} Nf4 {[%emt 0:01:49]} 19. Kh2 {[%emt 0:00:30]} g5 {[%emt 0:07:27]} 20. Nd2 {[%emt 0:04:20]} Bh6 {[%emt 0:13:57]} 21. g3 {[%emt 0:02:05]} g4 {[%emt 0:08:54]} 22. h4 {[%emt 0:00:24]} Nh3 {[%emt 0:03:01]} 23. Bxh3 {[%emt 0:03:37]} gxh3 {[%emt 0:00:17]} 24. Nf1 {[%emt 0:00:10]} Bg7 {[%emt 0:03:57]} 25. Ne3 {[%emt 0:02:20]} Nh6 {[%emt 0:00:24]} 26. dxc6 {[%emt 0:01:02]} bxc6 {[%emt 0:00:43]} 27. b5 {[%emt 0:01:11]} Rb8 {[%emt 0:02:01]} 28. a4 {[%emt 0:00:14]} Bf8 {[%emt 0:00:48]} 29. Ba3 {[%emt 0:00:28]} Ng4+ {[%emt 0:01:06]} 30. Nxg4 {[%emt 0:00:09]} Bxg4 {[%emt 0:00:13]} 31. Qd3 {[%emt 0:00:40]} Qh5 {[%emt 0:01:24]} 32. Bxd6 {[%emt 0:02:20]} Rd8 {[%emt 0:00:37]} 33. c5 {[%emt 0:00:06]} Bh6 {[%emt 0:00:08]} 34. bxc6 {[%emt 0:00:57]} Bc8 {[%emt 0:00:55]} 35. Nd5 {[%emt 0:00:46]} Qf7 {[%emt 0:00:32]} 36. Qf3 {[%emt 0:01:32]} Bg7 {[%emt 0:00:30]} 37. Ne7 {[%emt 0:02:36]} Be6 {[%emt 0:00:25]} 38. c7 {[%emt 0:00:31]} Rde8 {[%emt 0:00:22]} 39. Nxg8 {[%emt 0:00:09]} Rxg8 {[%emt 0:00:11]} 40. Rab1 {[%emt 0:00:11]} f5 {[%emt 0:00:59]} 41. Rb8 Bc8 {[%emt 0:00:21]} 42. Rxc8 {[%emt 0:01:39]} Rxc8 {[%emt 0:00:06]} 43. Qxf5 {[%emt 0:00:09]} 1-0

[Event "2nd Goa GM Open 2019"]
[Site "Goa"]
[Date "2019.06.18"]
[Round "1.21"]
[White "Manish Anto Cristiano F"]
[Black "Karthik Venkataraman"]
[Result "1-0"]
[ECO "B94"]
[WhiteElo "2099"]
[BlackElo "2499"]
[Annotator "ChessBase"]
[PlyCount "65"]
[EventDate "2019.06.17"]
[EventType "swiss"]
[EventCountry "IND"]
[SourceTitle "playchess.com"]
[Source "ChessBase"]
[SourceQuality "1"]
[TimeControl "5400+30"]

1. e4 {[%emt 0:00:00]} c5 {[%emt 0:00:00]} 2. Nf3 {[%emt 0:00:07]} d6 {[%emt 0:00:00]} 3. d4 {[%emt 0:00:27]} cxd4 {[%emt 0:00:00]} 4. Nxd4 {[%emt 0:00:32]} Nf6 {[%emt 0:00:00]} 5. Nc3 {[%emt 0:00:35]} a6 {[%emt 0:00:00]} 6. Bg5 {[%emt 0:02:54]} Nbd7 {[%emt 0:00:06]} 7. Qe2 {[%emt 0:01:11]} h6 {[%emt 0:02:05]} 8. Bh4 {[%emt 0:01:32]} g6 {[%emt 0:01:46]} 9. f4 {[%emt 0:01:17]} e5 {[%emt 0:00:11]} 10. fxe5 {[%emt 0:00:39]} dxe5 {[%emt 0:00:06]} 11. O-O-O {[%emt 0:00:19]} Qc7 {[%emt 0:00:32]} 12. Nb3 {[%emt 0:02:04]} b5 {[%emt 0:06:00]} 13. g4 {[%emt 0:07:56]} Be7 {[%emt 0:23:03]} 14. Bg2 {[%emt 0:00:30]} Bb7 {[%emt 0:00:30]} 15. Rhf1 {[%emt 0:08:05]} Rc8 {[%emt 0:01:46]} 16. Qf2 {[%emt 0:09:07]} Rh7 {[%emt 0:10:12]} 17. Bxf6 {[%emt 0:05:15]} Nxf6 {[%emt 0:00:23]} 18. h3 {[%emt 0:00:15]} b4 {[%emt 0:06:58]} 19. Nd5 {[%emt 0:02:57]} Bxd5 {[%emt 0:01:25]} 20. exd5 {[%emt 0:00:58]} Nd7 {[%emt 0:00:05]} 21. Kb1 {[%emt 0:07:05]} a5 {[%emt 0:06:19]} 22. d6 {[%emt 0:01:45]} Bxd6 {[%emt 0:00:09]} 23. Nxa5 {[%emt 0:01:19]} Bc5 {[%emt 0:00:16]} 24. Qd2 {[%emt 0:00:19]} Nb6 {[%emt 0:02:00]} 25. Rf6 {[%emt 0:09:47]} Kf8 {[%emt 0:18:11]} 26. Rc6 {[%emt 0:03:24]} Qb8 {[%emt 0:00:04]} 27. Rxc5 {[%emt 0:03:38]} Rc7 28. Rc6 Rxc6 {[%emt 0:01:23]} 29. Qxb4+ {[%emt 0:00:40]} Rc5 {[%emt 0:00:21]} 30. Nb7 {[%emt 0:00:14]} Nd7 {[%emt 0:02:01]} 31. Rd3 Kg7 32. Rxd7 {[%emt 0:02:54]} Rc7 {[%emt 0:00:38]} 33. Rd8 {[%emt 0:02:20]} 1-0

[Event "2nd Goa GM Open 2019"]
[Site "Goa"]
[Date "2019.06.18"]
[Round "1.22"]
[White "Anurag, Mhamal"]
[Black "Jaeel Atharva"]
[Result "1-0"]
[ECO "A05"]
[WhiteElo "2497"]
[BlackElo "2098"]
[Annotator "ChessBase"]
[PlyCount "59"]
[EventDate "2019.06.17"]
[EventType "swiss"]
[EventCountry "IND"]
[SourceTitle "playchess.com"]
[Source "ChessBase"]
[SourceQuality "1"]
[TimeControl "5400+30"]

1. Nf3 {[%emt 0:00:00]} Nf6 {[%emt 0:00:00]} 2. g3 {[%emt 0:00:07]} e6 {[%emt 0:00:00]} 3. Bg2 {[%emt 0:00:48]} d5 {[%emt 0:00:05]} 4. O-O {[%emt 0:01:41]} Be7 {[%emt 0:00:17]} 5. c4 {[%emt 0:01:08]} O-O {[%emt 0:01:38]} 6. Ne5 {[%emt 0:09:13]} c5 {[%emt 0:07:38]} 7. d4 {[%emt 0:05:16]} Nc6 {[%emt 0:08:34]} 8. cxd5 {[%emt 0:14:59]} Nxe5 {[%emt 0:00:30]} 9. dxe5 {[%emt 0:00:30]} Nxd5 {[%emt 0:00:30]} 10. Qb3 {[%emt 0:00:30]} Qc7 {[%emt 0:08:59]} 11. Bxd5 {[%emt 0:05:02]} exd5 {[%emt 0:00:09]} 12. Nc3 {[%emt 0:02:28]} d4 {[%emt 0:07:54]} 13. Nd5 {[%emt 0:00:05]} Qd8 {[%emt 0:07:14]} 14. e4 {[%emt 0:00:05]} Bh3 {[%emt 0:03:41]} 15. Qxb7 {[%emt 0:06:32]} Re8 {[%emt 0:01:23]} 16. Re1 {[%emt 0:19:23]} Bf8 {[%emt 0:03:25]} 17. Bf4 {[%emt 0:24:24]} Rb8 {[%emt 0:10:09]} 18. Qxa7 {[%emt 0:00:03]} Rxb2 {[%emt 0:00:24]} 19. Qa3 {[%emt 0:00:09]} Rb7 {[%emt 0:03:04]} 20. Qf3 {[%emt 0:07:05]} Be6 {[%emt 0:01:47]} 21. a4 {[%emt 0:00:02]} c4 {[%emt 0:10:31]} 22. a5 {[%emt 0:00:02]} Rb3 {[%emt 0:00:50]} 23. Qd1 {[%emt 0:00:01]} Bxd5 {[%emt 0:00:38]} 24. exd5 {[%emt 0:00:02]} Qxd5 {[%emt 0:01:02]} 25. e6 {[%emt 0:00:02]} fxe6 {[%emt 0:01:37]} 26. a6 {[%emt 0:00:34]} Ra8 {[%emt 0:02:47]} 27. Re5 {[%emt 0:01:18]} Qc6 {[%emt 0:03:01]} 28. a7 {[%emt 0:01:58]} Bc5 {[%emt 0:01:01]} 29. Rc1 {[%emt 0:00:32]} d3 {[%emt 0:04:04]} 30. Rxc5 {[%emt 0:00:16]} 1-0

[Event "2nd Goa GM Open 2019"]
[Site "Goa"]
[Date "2019.06.18"]
[Round "1.23"]
[White "Saptorshi Gupta"]
[Black "Venkatesh, M.R."]
[Result "0-1"]
[ECO "C24"]
[WhiteElo "2097"]
[BlackElo "2490"]
[Annotator "ChessBase"]
[PlyCount "68"]
[EventDate "2019.06.17"]
[EventType "swiss"]
[EventCountry "IND"]
[SourceTitle "playchess.com"]
[Source "ChessBase"]
[SourceQuality "1"]
[TimeControl "5400+30"]

1. e4 {[%emt 0:01:11]} e5 {[%emt 0:02:14]} 2. Bc4 {[%emt 0:02:03]} Nf6 {[%emt 0:02:42]} 3. d3 {[%emt 0:00:39]} c6 {[%emt 0:02:23]} 4. Nf3 {[%emt 0:01:48]} Be7 {[%emt 0:04:42]} 5. O-O {[%emt 0:02:13]} d6 {[%emt 0:01:15]} 6. Nc3 {[%emt 0:04:07]} Bg4 {[%emt 0:00:52]} 7. h3 {[%emt 0:02:35]} Bh5 {[%emt 0:00:29]} 8. Re1 {[%emt 0:01:02]} Nbd7 {[%emt 0:00:28]} 9. a4 {[%emt 0:03:55]} Qc7 {[%emt 0:05:16]} 10. Be3 {[%emt 0:15:23]} b6 {[%emt 0:06:50]} 11. d4 {[%emt 0:08:16]} exd4 {[%emt 0:08:57]} 12. Bxd4 {[%emt 0:01:21]} Ne5 {[%emt 0:00:07]} 13. Be2 {[%emt 0:01:22]} Bxf3 {[%emt 0:05:59]} 14. Bxf3 {[%emt 0:00:23]} h5 {[%emt 0:00:26]} 15. g3 {[%emt 0:10:27]} h4 {[%emt 0:13:24]} 16. Bg2 {[%emt 0:08:07]} hxg3 {[%emt 0:01:24]} 17. f4 {[%emt 0:01:14]} O-O-O {[%emt 0:04:30]} 18. Qc1 {[%emt 0:08:14]} Ng6 {[%emt 0:01:39]} 19. a5 {[%emt 0:01:48]} b5 {[%emt 0:01:02]} 20. Qe3 {[%emt 0:03:28]} Nh5 {[%emt 0:06:25]} 21. Bb6 {[%emt 0:06:45]} Qd7 {[%emt 0:05:46]} 22. f5 {[%emt 0:02:54]} Ne5 {[%emt 0:00:52]} 23. Bxd8 {[%emt 0:02:29]} Bxd8 {[%emt 0:00:11]} 24. b3 {[%emt 0:01:50]} g5 {[%emt 0:01:33]} 25. Ne2 {[%emt 0:02:35]} g4 {[%emt 0:00:33]} 26. hxg4 {[%emt 0:00:07]} Nxg4 {[%emt 0:00:13]} 27. Qf3 {[%emt 0:00:26]} Ne5 {[%emt 0:00:19]} 28. Qe3 {[%emt 0:00:21]} Rg8 {[%emt 0:02:29]} 29. c4 {[%emt 0:01:54]} Bg5 {[%emt 0:02:30]} 30. Qc3 {[%emt 0:00:07]} b4 {[%emt 0:02:01]} 31. Qxb4 {[%emt 0:02:18]} Be3+ {[%emt 0:00:22]} 32. Kf1 {[%emt 0:00:03]} Ng4 {[%emt 0:00:34]} 33. Ng1 {[%emt 0:00:22]} Nf4 {[%emt 0:01:14]} 34. Nf3 {[%emt 0:00:49]} Nh2+ {[%emt 0:00:29]} 0-1

[Event "2nd Goa GM Open 2019"]
[Site "Goa"]
[Date "2019.06.18"]
[Round "1.24"]
[White "Gagare, Shardul"]
[Black "Hegde, Ravi Gopal"]
[Result "1-0"]
[ECO "B06"]
[WhiteElo "2482"]
[BlackElo "2096"]
[Annotator "ChessBase"]
[PlyCount "63"]
[EventDate "2019.06.17"]
[EventType "swiss"]
[EventCountry "IND"]
[SourceTitle "playchess.com"]
[Source "ChessBase"]
[SourceQuality "1"]
[TimeControl "5400+30"]

1. e4 {[%emt 0:00:00]} g6 {[%emt 0:00:00]} 2. d4 {[%emt 0:00:29]} Bg7 {[%emt 0:00:06]} 3. Nc3 {[%emt 0:00:25]} c6 {[%emt 0:01:23]} 4. Nf3 {[%emt 0:01:38]} d5 {[%emt 0:00:12]} 5. e5 {[%emt 0:00:05]} Nh6 {[%emt 0:01:17]} 6. h3 {[%emt 0:00:12]} O-O {[%emt 0:00:19]} 7. Bf4 {[%emt 0:04:39]} f6 {[%emt 0:00:16]} 8. Qd2 {[%emt 0:00:33]} Nf7 {[%emt 0:00:09]} 9. O-O-O {[%emt 0:05:38]} b5 {[%emt 0:00:37]} 10. Re1 {[%emt 0:10:16]} Qa5 {[%emt 0:04:01]} 11. Kb1 {[%emt 0:04:07]} b4 {[%emt 0:00:43]} 12. Ne2 {[%emt 0:01:57]} fxe5 {[%emt 0:00:36]} 13. dxe5 {[%emt 0:14:46]} e6 {[%emt 0:00:30]} 14. h4 {[%emt 0:00:30]} c5 {[%emt 0:00:30]} 15. h5 {[%emt 0:00:30]} Nc6 {[%emt 0:00:30]} 16. hxg6 {[%emt 0:00:30]} hxg6 {[%emt 0:05:06]} 17. Qd3 {[%emt 0:05:11]} Ne7 {[%emt 0:00:35]} 18. Nh4 {[%emt 0:08:08]} b3 {[%emt 0:16:55]} 19. Nc3 {[%emt 0:02:04]} bxc2+ {[%emt 0:00:15]} 20. Qxc2 {[%emt 0:12:15]} Nh8 {[%emt 0:00:55]} 21. Bg5 {[%emt 0:04:07]} Nf5 {[%emt 0:00:16]} 22. Nxf5 {[%emt 0:01:22]} Rxf5 {[%emt 0:00:48]} 23. Bd2 {[%emt 0:03:28]} Rxf2 {[%emt 0:04:59]} 24. Rxh8+ {[%emt 0:09:48]} Kxh8 {[%emt 0:01:08]} 25. Qxg6 {[%emt 0:00:08]} Rb8 {[%emt 0:15:06]} 26. Bd3 {[%emt 0:06:09]} Kg8 {[%emt 0:06:49]} 27. b3 {[%emt 0:02:02]} Qc7 {[%emt 0:05:16]} 28. Bh6 {[%emt 0:01:55]} Kf8 {[%emt 0:00:38]} 29. Qh7 {[%emt 0:00:08]} c4 {[%emt 0:08:05]} 30. Qh8+ {[%emt 0:00:08]} Ke7 {[%emt 0:00:09]} 31. Qxg7+ {[%emt 0:00:05]} Rf7 {[%emt 0:00:09]} 32. Bg5+ {[%emt 0:00:03]} 1-0

[Event "2nd Goa GM Open 2019"]
[Site "Goa"]
[Date "2019.06.18"]
[Round "1.25"]
[White "Goswami, Vedant"]
[Black "Rahman, Ziaur"]
[Result "0-1"]
[ECO "D02"]
[WhiteElo "2093"]
[BlackElo "2481"]
[Annotator "ChessBase"]
[PlyCount "66"]
[EventDate "2019.06.17"]
[EventType "swiss"]
[EventCountry "IND"]
[SourceTitle "playchess.com"]
[Source "ChessBase"]
[SourceQuality "1"]
[TimeControl "5400+30"]

1. d4 {[%emt 0:00:00]} d5 {[%emt 0:00:44]} 2. Nf3 {[%emt 0:00:16]} Nf6 {[%emt 0:00:58]} 3. Bf4 {[%emt 0:00:56]} e6 {[%emt 0:00:26]} 4. e3 {[%emt 0:01:05]} c5 {[%emt 0:00:36]} 5. c3 {[%emt 0:01:11]} Nc6 {[%emt 0:00:23]} 6. Nbd2 {[%emt 0:01:36]} Nh5 {[%emt 0:02:33]} 7. Bg5 {[%emt 0:02:32]} Qb6 {[%emt 0:00:33]} 8. Ne5 {[%emt 0:03:37]} Nf6 {[%emt 0:03:10]} 9. Qb3 {[%emt 0:04:26]} Bd6 {[%emt 0:00:00]} 10. Qd1 {[%emt 0:00:00]} Bf8 {[%emt 0:01:00]} 11. Qb3 {[%emt 0:01:00]} Bd6 {[%emt 0:15:37]} 12. f4 {[%emt 0:09:30]} h6 {[%emt 0:00:30]} 13. Bh4 {[%emt 0:00:30]} c4 {[%emt 0:11:20]} 14. Qc2 {[%emt 0:02:11]} Bxe5 {[%emt 0:01:33]} 15. fxe5 {[%emt 0:00:48]} Ng4 {[%emt 0:00:35]} 16. Bf2 {[%emt 0:02:18]} Nxf2 {[%emt 0:01:36]} 17. Kxf2 {[%emt 0:00:03]} O-O {[%emt 0:00:14]} 18. Be2 {[%emt 0:05:19]} f6 {[%emt 0:02:18]} 19. exf6 {[%emt 0:01:05]} Rxf6+ {[%emt 0:01:17]} 20. Ke1 {[%emt 0:00:30]} e5 {[%emt 0:02:43]} 21. Rf1 {[%emt 0:02:27]} Ne7 {[%emt 0:05:55]} 22. Nf3 {[%emt 0:16:46]} Bf5 {[%emt 0:06:36]} 23. Qd2 {[%emt 0:02:05]} exd4 {[%emt 0:01:40]} 24. exd4 {[%emt 0:02:25]} Be4 {[%emt 0:01:38]} 25. Kf2 {[%emt 0:02:45]} Ng6 {[%emt 0:01:40]} 26. Kg1 {[%emt 0:00:31]} Raf8 {[%emt 0:01:55]} 27. Rf2 {[%emt 0:03:19]} Nf4 {[%emt 0:00:56]} 28. Re1 {[%emt 0:06:44]} Rg6 {[%emt 0:02:05]} 29. Kf1 {[%emt 0:09:05]} Nh3 {[%emt 0:09:40]} 30. gxh3 {[%emt 0:02:11]} Qe6 {[%emt 0:00:12]} 31. Rc1 {[%emt 0:03:34]} Qxh3+ {[%emt 0:00:24]} 32. Ke1 {[%emt 0:00:03]} Bxf3 {[%emt 0:00:56]} 33. Bxf3 {[%emt 0:00:10]} Rg1+ {[%emt 0:01:48]} 0-1

[Event "2nd Goa GM Open 2019"]
[Site "Goa"]
[Date "2019.06.18"]
[Round "1.26"]
[White "Kunte, Abhijit"]
[Black "Hari Madhavan N B"]
[Result "1-0"]
[ECO "A06"]
[WhiteElo "2478"]
[BlackElo "2093"]
[Annotator "ChessBase"]
[PlyCount "75"]
[EventDate "2019.06.17"]
[EventType "swiss"]
[EventCountry "IND"]
[SourceTitle "playchess.com"]
[Source "ChessBase"]
[SourceQuality "1"]
[TimeControl "5400+30"]

1. Nf3 {[%emt 0:00:01]} d5 {[%emt 0:00:00]} 2. c4 {[%emt 0:02:28]} c6 {[%emt 0:00:00]} 3. d4 {[%emt 0:00:27]} Nf6 {[%emt 0:00:00]} 4. Qb3 {[%emt 0:00:09]} dxc4 {[%emt 0:01:08]} 5. Qxc4 {[%emt 0:00:06]} Bf5 {[%emt 0:00:17]} 6. g3 {[%emt 0:00:14]} e6 {[%emt 0:00:07]} 7. Bg2 {[%emt 0:00:03]} h6 {[%emt 0:05:18]} 8. O-O {[%emt 0:01:27]} Be7 {[%emt 0:00:14]} 9. Nc3 {[%emt 0:06:20]} O-O {[%emt 0:00:17]} 10. Ne5 {[%emt 0:04:57]} Nbd7 {[%emt 0:02:52]} 11. e4 {[%emt 0:00:23]} Bh7 {[%emt 0:00:10]} 12. Rd1 {[%emt 0:00:25]} Nxe5 {[%emt 0:13:16]} 13. dxe5 {[%emt 0:04:20]} Nd7 {[%emt 0:00:30]} 14. Qe2 {[%emt 0:00:30]} Qc7 {[%emt 0:00:30]} 15. f4 {[%emt 0:00:30]} b5 {[%emt 0:00:30]} 16. Be3 Nb6 {[%emt 0:12:31]} 17. Rac1 {[%emt 0:01:00]} Nc4 {[%emt 0:00:49]} 18. Bf2 {[%emt 0:01:41]} Rfd8 {[%emt 0:03:44]} 19. b3 {[%emt 0:13:06]} Na3 {[%emt 0:02:11]} 20. Nd5 {[%emt 0:07:59]} exd5 {[%emt 0:02:21]} 21. exd5 {[%emt 0:00:05]} Qa5 {[%emt 0:09:33]} 22. d6 {[%emt 0:02:37]} Bf8 {[%emt 0:00:12]} 23. Rxc6 {[%emt 0:00:42]} Nb1 {[%emt 0:10:02]} 24. Qb2 {[%emt 0:04:23]} Rac8 {[%emt 0:02:58]} 25. Rxb1 {[%emt 0:00:31]} Bxb1 {[%emt 0:06:26]} 26. Qxb1 {[%emt 0:00:12]} Rxc6 {[%emt 0:00:50]} 27. Bxc6 {[%emt 0:00:09]} Bxd6 {[%emt 0:08:42]} 28. exd6 {[%emt 0:01:17]} Rxd6 {[%emt 0:00:05]} 29. Bf3 {[%emt 0:02:31]} Qc3 {[%emt 0:03:36]} 30. Qe4 {[%emt 0:01:53]} g6 {[%emt 0:03:57]} 31. Kg2 {[%emt 0:03:44]} a6 {[%emt 0:02:36]} 32. Be1 {[%emt 0:10:34]} Qb2+ {[%emt 0:00:38]} 33. Qe2 {[%emt 0:00:07]} Qa1 {[%emt 0:03:20]} 34. Bb4 {[%emt 0:00:28]} Re6 {[%emt 0:00:20]} 35. Qd2 {[%emt 0:01:29]} Qf6 {[%emt 0:03:01]} 36. Bc3 {[%emt 0:00:46]} Qe7 {[%emt 0:00:09]} 37. Qd4 {[%emt 0:00:12]} Re2+ {[%emt 0:00:12]} 38. Kf1 {[%emt 0:00:35]} 1-0

[Event "2nd Goa GM Open 2019"]
[Site "Goa"]
[Date "2019.06.18"]
[Round "1.27"]
[White "Ghelani Dhairya"]
[Black "Vasquez Schroeder, Rodrigo"]
[Result "1/2-1/2"]
[ECO "E52"]
[WhiteElo "2092"]
[BlackElo "2476"]
[Annotator "ChessBase"]
[PlyCount "107"]
[EventDate "2019.06.17"]
[EventType "swiss"]
[EventCountry "IND"]
[SourceTitle "playchess.com"]
[Source "ChessBase"]
[SourceQuality "1"]
[TimeControl "5400+30"]

1. d4 {[%emt 0:00:00]} Nf6 {[%emt 0:00:00]} 2. c4 {[%emt 0:00:00]} e6 {[%emt 0:00:00]} 3. Nc3 {[%emt 0:00:25]} Bb4 {[%emt 0:00:01]} 4. e3 {[%emt 0:00:14]} O-O {[%emt 0:00:07]} 5. Bd3 {[%emt 0:01:17]} d5 {[%emt 0:00:07]} 6. Nf3 {[%emt 0:00:27]} b6 {[%emt 0:00:09]} 7. O-O {[%emt 0:01:35]} Bb7 {[%emt 0:00:04]} 8. cxd5 {[%emt 0:02:08]} exd5 {[%emt 0:00:22]} 9. Qc2 a6 {[%emt 0:06:17]} 10. a3 {[%emt 0:09:22]} Bd6 {[%emt 0:00:07]} 11. b4 {[%emt 0:07:55]} Qe7 {[%emt 0:01:27]} 12. Re1 {[%emt 0:17:31]} Re8 {[%emt 0:00:30]} 13. Nd2 {[%emt 0:00:30]} Ne4 {[%emt 0:00:30]} 14. Nf1 {[%emt 0:00:30]} Qh4 {[%emt 0:00:30]} 15. Bb2 {[%emt 0:04:20]} Nd7 {[%emt 0:10:07]} 16. f3 {[%emt 0:04:44]} Nxc3 {[%emt 0:03:47]} 17. Bxc3 {[%emt 0:00:41]} Nf6 {[%emt 0:02:29]} 18. Re2 {[%emt 0:04:21]} Re7 {[%emt 0:02:58]} 19. Be1 {[%emt 0:03:13]} Qg5 {[%emt 0:01:34]} 20. h4 {[%emt 0:01:57]} Qh6 {[%emt 0:01:04]} 21. g4 {[%emt 0:02:27]} Nd7 {[%emt 0:01:05]} 22. g5 {[%emt 0:11:04]} Qh5 {[%emt 0:00:11]} 23. f4 {[%emt 0:01:47]} Nf8 {[%emt 0:02:20]} 24. Rg2 {[%emt 0:05:13]} Re4 {[%emt 0:06:21]} 25. Qf2 {[%emt 0:04:07]} Be7 {[%emt 0:07:49]} 26. Ng3 {[%emt 0:02:54]} Qg6 {[%emt 0:00:05]} 27. Bxe4 {[%emt 0:00:11]} dxe4 {[%emt 0:00:08]} 28. f5 {[%emt 0:00:15]} Qc6 {[%emt 0:00:29]} 29. f6 {[%emt 0:00:23]} Bd6 {[%emt 0:01:18]} 30. fxg7 {[%emt 0:00:58]} Ng6 {[%emt 0:00:17]} 31. Nf5 {[%emt 0:02:29]} Qd5 {[%emt 0:01:28]} 32. Nh6+ {[%emt 0:02:40]} Kxg7 {[%emt 0:00:02]} 33. Qf6+ {[%emt 0:00:22]} Kf8 {[%emt 0:00:05]} 34. Rf2 {[%emt 0:00:18]} Ke8 {[%emt 0:01:05]} 35. Qxf7+ {[%emt 0:01:41]} Qxf7 {[%emt 0:00:37]} 36. Rxf7 {[%emt 0:00:43]} Nf8 {[%emt 0:00:02]} 37. h5 {[%emt 0:02:20]} Bc8 {[%emt 0:00:35]} 38. Rg7 {[%emt 0:00:56]} Be6 {[%emt 0:00:41]} 39. Kg2 {[%emt 0:01:30]} c5 {[%emt 0:00:35]} 40. bxc5 {[%emt 0:02:51]} bxc5 {[%emt 0:00:01]} 41. dxc5 {[%emt 0:00:01]} Be5 {[%emt 0:00:15]} 42. Rb7 {[%emt 0:00:47]} Bxa1 {[%emt 0:00:10]} 43. c6 {[%emt 0:00:09]} Rc8 {[%emt 0:03:58]} 44. Bb4 {[%emt 0:02:37]} Rxc6 {[%emt 0:00:23]} 45. Re7+ {[%emt 0:00:42]} Kd8 {[%emt 0:00:06]} 46. Nf7+ {[%emt 0:00:55]} Bxf7 {[%emt 0:00:27]} 47. Rxf7 {[%emt 0:00:01]} Ne6 {[%emt 0:00:15]} 48. Rxh7 Bc3 {[%emt 0:03:11]} 49. g6 {[%emt 0:01:32]} Be5 {[%emt 0:02:50]} 50. h6 {[%emt 0:00:42]} Rc2+ {[%emt 0:02:01]} 51. Kf1 {[%emt 0:00:04]} Rc1+ {[%emt 0:00:24]} 52. Kg2 {[%emt 0:00:10]} Rc2+ {[%emt 0:00:46]} 53. Kf1 {[%emt 0:00:01]} Rc1+ {[%emt 0:00:36]} 54. Kg2 {[%emt 0:00:01]} 1/2-1/2